bitfinex/quotes_ETHUSD_20250414
["timestamp","ask_amount","ask_price","bid_price","bid_amount"]
[1744648818063,0.7572,1628.3,1628.0,6.14215]
[1744648818362,6.89886,1628.3,1628.0,6.14245]
[1744648818767,13.04966,1628.5,1628.1,6.14201]
[1744648818944,13.04964,1628.5,1628.1,6.14179]
[1744648819132,13.04964,1628.5,1628.1,6.755969]
[1744648819335,13.04964,1628.5,1628.1,12.897929]
[1744648819735,6.909,1628.5,1628.2,6.1417]
[1744648819968,6.909,1628.5,1628.2,6.14164]
[1744648820470,13.04973,1628.5,1628.1,6.756259]
[1744648820963,6.14155,1628.3,1628.0,6.14241]
[1744648821174,6.14198,1628.2,1627.9,6.89557]
[1744648821374,6.14125,1628.4,1628.0,6.14215]
[1744648821560,6.14143,1628.3,1628.0,6.14215]
[1744648821736,6.909,1628.5,1628.0,0.63694535]
[1744648821942,13.04987,1628.5,1628.1,6.14194]
[1744648822472,13.04987,1628.5,1628.2,6.14159]
[1744648822658,0.7879,1628.7,1628.6,6.14024]
[1744648822968,6.14,1628.8,1628.6,6.1401]
[1744648823178,0.7879,1629.0,1628.6,0.61401]
[1744648823345,6.14,1629.1,1628.8,6.13912]
[1744648823537,19.21472,1629.2,1628.9,6.13894]
[1744648823743,6.93835,1629.2,1628.8,6.13948]
[1744648823978,6.93835,1629.2,1629.1,6.13835]
[1744648823979,0.01045,1629.2,1629.1,6.13835]
[1744648825187,0.01045,1629.2,1629.1,7.366041]
[1744648825347,0.01045,1629.2,1629.1,8.123041]
[1744648825543,0.01045,1629.2,1629.1,8.18442091]
[1744648825779,0.01045,1629.2,1629.1,8.123041]
[1744648826242,0.01045,1629.2,1629.1,6.13835]
[1744648826438,0.01045,1629.2,1629.0,6.13856]
[1744648826643,0.01045,1629.2,1629.1,6.13835]
[1744648827184,0.01045,1629.2,1629.0,12.27714]
[1744648827385,0.01045,1629.2,1629.1,6.13835]
[1744648828485,0.01045,1629.2,1629.0,6.13856]
[1744648828690,6.14874,1629.2,1628.8,6.13937]
[1744648828838,12.981764,1629.2,1628.8,12.2787]
[1744648829285,19.121764,1629.2,1628.8,6.13933]
[1744648829498,6.13839,1629.1,1628.8,6.13933]
[1744648829666,6.13875,1629.0,1628.6,6.14023]
[1744648829860,6.13961,1628.8,1628.5,55.607]
[1744648830065,6.14015,1628.7,1628.3,6.14122]
[1744648830307,6.14027,1628.6,1628.4,4.0]
[1744648830659,6.13993,1628.7,1628.4,4.0]
[1744648830888,6.13993,1628.7,1628.3,6.14137]
[1744648830889,7.516905,1628.9,1628.5,6.1403]
[1744648831103,6.13953,1628.8,1628.4,6.14095]
[1744648831388,12.27939,1628.8,1628.4,6.14088]
[1744648831560,6.13987,1628.7,1628.4,6.14088]
[1744648831763,0.7638,1628.9,1628.4,6.14099]
[1744648831957,0.7638,1628.9,1628.7,6.13972]
[1744648832485,0.7638,1628.9,1628.4,6.14095]
[1744648832686,6.14041,1628.6,1628.3,6.14126]
[1744648832887,12.28087,1628.6,1628.3,6.14126]
[1744648833086,12.27996,1628.7,1628.3,12.28252]
[1744648833305,0.7638,1628.9,1628.3,6.14137]
[1744648833662,12.27874,1629.0,1628.6,6.1401]
[1744648833882,6.13924,1628.9,1628.5,6.14062]
[1744648834093,6.1396,1628.8,1628.5,6.14062]
[1744648834397,12.27932,1628.8,1628.5,6.14062]
[1744648834693,12.27896,1629.0,1628.6,6.13999]
[1744648834876,12.27896,1629.0,1628.5,1.228155]
[1744648834877,6.13922,1628.9,1628.5,7.368665]
[1744648835081,6.13968,1628.8,1628.5,6.14051]
[1744648835381,6.13924,1628.9,1628.3,6.14137]
[1744648835556,18.41769,1629.0,1628.6,6.13996]
[1744648835767,18.41769,1629.0,1628.6,12.27995]
[1744648835963,0.8287,1629.1,1628.7,6.13986]
[1744648836187,0.8287,1629.1,1628.9,6.13903]
[1744648836399,0.8287,1629.1,1628.8,6.13948]
[1744648836594,6.96722,1629.1,1628.7,6.13979]
[1744648836921,12.27775,1629.0,1628.7,6.13979]
[1744648837068,6.13925,1628.9,1628.5,6.1405]
[1744648837269,6.14039,1628.6,1628.3,6.14131]
[1744648837480,12.28003,1628.7,1628.3,6.14131]
[1744648837666,12.28003,1628.7,1628.4,6.14089]
[1744648838186,6.14,1628.7,1628.6,6.14024]
[1744648838399,6.14,1628.7,1628.6,7.368301]
[1744648838898,0.7867,1629.1,1628.8,6.13914]
[1744648839199,12.983394,1629.2,1628.9,12.27797]
[1744648839411,6.15045,1629.2,1629.0,6.13856]
[1744648839772,12.28849,1629.2,1628.9,12.27804]
[1744648839971,12.28849,1629.2,1628.8,6.13934]
[1744648840171,12.28849,1629.2,1628.9,6.13898]
[1744648840601,12.28849,1629.2,1628.8,12.27878]
[1744648840797,12.28849,1629.2,1628.9,6.1391]
[1744648841098,6.15045,1629.2,1629.1,6.13835]
[1744648842211,0.01045,1629.2,1629.1,6.13835]
[1744648842821,0.01045,1629.2,1629.0,13.05057]
[1744648843024,0.01045,1629.2,1629.1,6.13835]
[1744648843441,1e-05,1629.2,1629.1,7.44338]
[1744648843640,1e-05,1629.2,1629.1,12.50114896]
[1744648843795,1e-05,1629.2,1629.1,12.43977244]
[1744648844493,1e-05,1629.2,1629.1,8.68460842]
[1744648844726,1e-05,1629.2,1629.1,12.68460842]
[1744648845927,1e-05,1629.2,1629.1,8.68460842]
[1744648846828,1e-05,1629.2,1629.1,8.21388]
[1744648847008,1e-05,1629.2,1629.1,7.44338]
[1744648850297,1e-05,1629.2,1629.1,7.50475901]
[1744648850508,1e-05,1629.2,1629.1,7.44338]
[1744648851712,1e-05,1629.2,1629.1,7.50476018]
[1744648852105,1e-05,1629.2,1629.1,11.83436018]
[1744648852321,1e-05,1629.2,1629.1,11.77298]
[1744648853531,1e-05,1629.4,1629.1,11.77298]
[1744648853737,1e-05,1629.4,1629.3,10.7856731]
[1744648853934,1e-05,1629.4,1629.3,18.4906731]
[1744648854235,1e-05,1629.4,1629.3,17.9406731]
[1744648854737,1e-05,1629.4,1629.3,13.2356731]
[1744648855449,1e-05,1629.4,1629.3,13.7856731]
[1744648855609,1e-05,1629.4,1629.3,16.74186021]
[1744648856419,1e-05,1629.4,1629.3,21.50286021]
[1744648856924,6.14,1630.2,1629.8,0.761]
[1744648857233,0.8309,1630.0,1629.8,6.13572]
[1744648857535,0.8309,1630.0,1629.9,6.13534]
[1744648857710,6.5410058,1630.3,1630.1,6.13442]
[1744648857711,1.2319058,1630.3,1630.1,6.13442]
[1744648857911,7.3658458,1630.3,1629.9,6.1352]
[1744648858132,1.2319058,1630.3,1630.0,6.13495]
[1744648858340,1.2319058,1630.3,1630.0,12.26978]
[1744648858535,1.2319058,1630.3,1630.1,6.13454]
[1744648858735,1.2319058,1630.3,1630.0,6.13483]
[1744648858909,7.3658558,1630.3,1630.0,6.13483]
[1744648859108,6.13497,1630.0,1629.7,13.83993]
[1744648859315,0.7679,1630.0,1629.7,13.83988]
[1744648859714,6.90292,1630.0,1629.7,19.97587]
[1744648860216,0.7679,1630.0,1629.8,6.13536]
[1744648860433,0.7679,1630.0,1629.9,6.13534]
[1744648860632,0.7679,1630.0,1629.8,12.27095]
[1744648860956,0.7679,1630.0,1629.7,13.84002]
[1744648861110,0.7679,1630.0,1629.7,19.97604]
[1744648861442,0.7679,1630.0,1629.8,6.13568]
[1744648862811,0.7826,1630.2,1630.1,6.13459]
[1744648863127,0.7826,1630.2,1630.0,6.13478]
[1744648863308,0.7826,1630.2,1629.9,6.13523]
[1744648863513,6.13474,1630.1,1629.8,6.13562]
[1744648863733,7.439898,1630.1,1629.7,13.83997]
[1744648864038,6.13497,1630.0,1629.8,4.0]
[1744648864243,0.8279,1629.9,1629.3,12.5783731]
[1744648864406,6.9679,1629.9,1629.7,12.27185]
[1744648864609,6.9679,1629.9,1629.8,6.13572]
[1744648865010,6.9679,1629.9,1629.7,6.13591]
[1744648865213,6.9679,1629.9,1629.6,6.1364]
[1744648865434,13.10325,1629.9,1629.6,12.27273]
[1744648865840,6.9679,1629.9,1629.7,6.13604]
[1744648866041,6.14,1629.9,1629.8,6.13572]
[1744648866422,6.14,1629.9,1629.7,6.13591]
[1744648866836,6.14,1629.9,1629.7,12.27189]
[1744648867215,6.14,1629.9,1629.8,6.13572]
[1744648867619,6.14,1629.9,1629.8,7.362883]
[1744648868716,0.4010058,1630.3,1629.8,15.046883]
[1744648868921,0.4010058,1630.3,1630.0,6.13481]
[1744648869420,0.4010058,1630.3,1630.2,6.13421]
[1744648870621,0.4010058,1630.3,1630.2,9.9646488]
[1744648870822,0.4010058,1630.3,1630.2,11.98436199]
[1744648871028,6.14,1630.8,1630.7,6.13233]
[1744648871229,0.7618,1630.9,1630.8,6.13195]
[1744648871430,6.9239,1631.3,1631.0,6.13112]
[1744648871617,13.05403,1631.3,1630.9,12.26304]
[1744648871823,1.305403,1631.2,1630.9,12.26304]
[1744648872375,1.305403,1631.2,1631.0,6.13114]
[1744648872575,1.305403,1631.2,1631.0,12.26228]
[1744648872854,12.27008,1631.3,1630.9,17.9125331]
[1744648873028,6.14,1631.3,1630.9,17.9123131]
[1744648873242,0.05,1631.4,1631.3,6.13008]
[1744648873442,0.05,1631.4,1631.3,17.9091531]
[1744648873642,0.05,1631.4,1631.2,6.13045]
[1744648873834,0.05,1631.4,1631.2,6.13031]
[1744648874038,0.05,1631.4,1631.2,6.13045]
[1744648874257,0.05,1631.4,1631.2,6.13025]
[1744648874490,0.05,1631.4,1631.1,6.13066]
[1744648874635,6.17982,1631.4,1631.1,6.13066]
[1744648874835,0.05,1631.4,1631.1,6.13066]
[1744648875061,0.05,1631.4,1631.3,6.13008]
[1744648875267,0.05,1631.4,1631.3,6.95398]
[1744648875577,0.05,1631.4,1631.3,14.69627201]
[1744648875745,0.05,1631.4,1631.3,14.63498]
[1744648875945,1e-05,1631.4,1631.3,9.95398]
[1744648876155,1e-05,1631.4,1631.3,19.6977883]
[1744648876355,1e-05,1631.4,1631.3,17.63398]
[1744648877137,1e-05,1631.4,1631.3,21.63398]
[1744648877646,1e-05,1631.4,1631.3,22.18398]
[1744648879273,0.4010058,1631.9,1631.8,6.1282]
[1744648879435,0.4010058,1631.9,1631.8,14.5769]
[1744648879635,0.4010058,1631.9,1631.8,6.1282]
[1744648879839,0.4010058,1631.9,1631.6,12.25769]
[1744648880033,6.12823,1631.8,1631.5,4.8687731]
[1744648880266,6.12823,1631.8,1631.6,4.0]
[1744648880267,0.65292358,1631.8,1631.6,4.0]
[1744648880457,0.65292358,1631.8,1631.5,6.12902]
[1744648881060,6.1287,1631.7,1631.3,12.37195289]
[1744648881397,6.14,1631.7,1631.5,6.12922]
[1744648881699,6.14,1631.7,1631.6,6.12895]
[1744648882169,6.14,1631.7,1631.5,6.12916]
[1744648882371,1.226827,1631.7,1631.4,6.1294]
[1744648882573,6.14,1631.8,1631.5,6.12914]
[1744648882951,18.397,1631.8,1631.4,6.12957]
[1744648883161,0.8104,1631.5,1631.2,14.26385986]
[1744648883398,0.8104,1631.5,1631.3,6.12994]
[1744648883603,0.8104,1631.5,1631.3,12.25987]
[1744648883896,0.8104,1631.5,1631.3,6.12993]
[1744648884098,0.8104,1631.5,1631.0,7.677]
[1744648884255,6.926,1631.3,1631.2,4.0]
[1744648884460,9.468372,1631.3,1631.2,4.0]
[1744648884687,15.598452,1631.3,1631.2,4.0]
[1744648885089,6.13046,1631.2,1631.0,7.677]
[1744648885303,15.598632,1631.3,1631.0,7.677]
[1744648885473,21.729032,1631.3,1631.0,7.677]
[1744648885662,6.13052,1631.2,1631.0,7.677]
[1744648885860,0.7563,1631.0,1630.4,13.81033]
[1744648886179,6.13271,1630.6,1630.4,7.677]
[1744648886379,12.26576,1630.6,1630.4,7.677]
[1744648886584,6.13271,1630.6,1630.4,7.677]
[1744648886764,12.26562,1630.6,1630.2,14.75585622]
[1744648886963,6.13389,1630.3,1630.0,53.92275]
[1744648887187,6.90979,1630.3,1630.0,6.13475]
[1744648887701,0.7759,1630.3,1630.1,6.13446]
[1744648887904,0.7759,1630.3,1630.0,6.13496]
[1744648888204,6.90976,1630.3,1630.0,13.0375]
[1744648888404,6.90976,1630.3,1630.0,6.90254]
[1744648888585,6.90976,1630.3,1630.0,13.03733]
[1744648888770,6.90976,1630.3,1630.0,6.90249]
[1744648889673,13.0438,1630.3,1630.0,0.7677]
[1744648889885,13.04385,1630.3,1629.9,13.81222]
[1744648890102,6.13456,1630.2,1629.9,7.677]
[1744648890302,6.90988,1630.3,1629.9,13.81198]
[1744648890505,0.7759,1630.3,1630.2,6.13421]
[1744648890704,0.7759,1630.3,1630.0,12.26978]
[1744648891030,0.7759,1630.3,1630.0,6.13489]
[1744648891174,0.7759,1630.3,1630.1,6.13446]
[1744648892107,0.7759,1630.3,1630.0,12.26969]
[1744648892393,0.7759,1630.3,1630.0,12.26962]
[1744648892594,0.7759,1630.3,1630.1,6.13458]
[1744648892921,0.7759,1630.3,1630.0,8.129492]
[1744648893137,0.7684,1630.5,1630.4,6.13346]
[1744648893419,6.14,1630.8,1630.7,6.13233]
[1744648893613,6.945,1631.1,1630.9,6.1313]
[1744648893774,6.945,1631.1,1630.9,12.26276]
[1744648894108,6.945,1631.1,1631.0,6.1312]
[1744648894409,6.9145,1631.4,1631.1,6.13078]
[1744648894609,6.9145,1631.4,1631.2,6.13027]
[1744648895207,6.9145,1631.4,1631.1,6.13077]
[1744648895407,13.04446,1631.4,1631.0,12.26222]
[1744648895576,13.04446,1631.4,1631.3,6.13008]
[1744648895577,6.14,1631.4,1631.3,6.13008]
[1744648895775,6.14,1631.6,1631.4,6.12956]
[1744648895979,12.26908,1631.6,1631.3,6.12995]
[1744648896177,18.39834,1631.6,1631.2,6.13019]
[1744648896379,6.1295,1631.5,1631.1,15.26143]
[1744648896608,14.190364,1631.6,1631.2,6.13044]
[1744648896790,14.190364,1631.6,1631.2,6.13032]
[1744648896987,6.14,1631.6,1631.3,6.12994]
[1744648897189,6.14,1631.6,1631.1,13.2288731]
[1744648897503,6.14,1631.6,1631.3,6.9608]
[1744648897888,6.14,1631.6,1631.4,6.12935]
[1744648898515,6.14,1631.7,1631.6,6.12895]
[1744648899022,6.5410058,1631.9,1631.7,12.25666]
[1744648899217,6.5410058,1631.9,1631.6,6.12878]
[1744648899536,6.5410058,1631.9,1631.7,6.12856]
[1744648900185,12.6688858,1631.9,1631.6,12.25756]
[1744648900385,6.5410058,1631.9,1631.7,6.12856]
[1744648900628,6.12836,1631.8,1631.5,6.12925]
[1744648900784,6.12836,1631.8,1631.4,10.12953]
[1744648900990,20.06368638,1631.9,1631.5,12.25853]
[1744648901225,6.5410058,1631.9,1631.8,6.1282]
[1744648901386,6.5410058,1631.9,1631.7,12.25675]
[1744648901587,6.5410058,1631.9,1631.7,6.12834]
[1744648902280,6.5410058,1631.9,1631.5,6.12919]
[1744648902484,12.25678,1631.8,1631.5,6.12919]
[1744648902686,7.19510638,1631.9,1631.4,10.12944]
[1744648902912,6.12884,1631.7,1631.4,4.0]
[1744648903088,13.05867,1631.7,1631.4,4.0]
[1744648903293,7.3419058,1631.9,1631.4,4.06129573]
[1744648903493,13.4700058,1631.9,1631.5,6.12928]
[1744648903719,19.5981858,1631.9,1631.5,6.1292]
[1744648903919,6.12824,1631.8,1631.5,6.1292]
[1744648904221,12.25663,1631.8,1631.5,6.1292]
[1744648904419,6.12866,1631.7,1631.3,13.78986]
[1744648904590,12.26866,1631.7,1631.3,19.91979]
[1744648904791,6.12908,1631.6,1631.3,13.78986]
[1744648905014,6.12908,1631.6,1631.3,19.91983]
[1744648905221,12.26866,1631.7,1631.4,6.12969]
[1744648905718,6.14,1631.7,1631.4,6.12955]
[1744648905920,6.14,1631.7,1631.6,6.12895]
[1744648907636,12.2688,1631.7,1631.3,6.96053]
[1744648907930,6.1295,1631.5,1631.4,4.0]
[1744648908717,12.25822,1631.6,1631.4,4.0]
[1744648908923,12.25828,1631.6,1631.4,4.0]
[1744648909097,12.25823,1631.6,1631.3,6.13006]
[1744648909296,12.25823,1631.6,1631.2,12.26068]
[1744648909495,12.2696,1631.5,1631.1,62.41731]
[1744648909710,6.12989,1631.4,1631.1,61.58671]
[1744648909951,6.919,1631.3,1630.9,2.056876]
[1744648910097,13.04938,1631.3,1631.0,12.26218]
[1744648910447,13.04938,1631.3,1631.1,10.13059]
[1744648910448,6.14,1631.3,1631.1,10.13059]
[1744648910654,6.14,1631.3,1631.1,6.13059]
[1744648910996,6.14,1631.3,1631.2,6.13045]
[1744648911500,6.14,1631.3,1631.1,6.13059]
[1744648911696,6.14,1631.3,1631.1,7.356764]
[1744648911896,6.14,1631.3,1631.1,12.26127]
[1744648912094,6.14,1631.3,1631.2,6.13045]
[1744648913199,6.14,1631.3,1631.1,6.13059]
[1744648913406,6.14,1631.3,1631.1,12.26127]
[1744648913635,6.14,1631.3,1631.1,6.13059]
[1744648914034,12.27019,1631.3,1631.0,6.13114]
[1744648914200,18.40049,1631.3,1631.0,6.13114]
[1744648914400,12.27019,1631.3,1631.0,6.13114]
[1744648914597,8.813099,1631.3,1630.9,7.657]
[1744648915036,6.14,1631.3,1631.2,6.13045]
[1744648915637,6.14,1631.3,1631.1,6.13068]
[1744648915832,6.14,1631.3,1631.2,6.13045]
[1744648916537,0.8245,1631.7,1631.5,6.129]
[1744648916920,6.5289458,1631.9,1631.7,6.12848]
[1744648916921,0.4010058,1631.9,1631.7,6.12848]
[1744648917299,0.4010058,1631.9,1631.8,6.1282]
[1744648917726,0.4010058,1631.9,1631.8,7.353868]
[1744648917928,0.4010058,1631.9,1631.8,15.33111994]
[1744648918128,0.4010058,1631.9,1631.8,11.171768]
[1744648918362,0.4010058,1631.9,1631.8,8.171768]
[1744648919106,0.4010058,1631.9,1631.8,7.353868]
[1744648919530,0.4010058,1631.9,1631.8,6.1282]
[1744648920347,7.3529258,1631.9,1631.6,6.12884]
[1744648920512,7.3529258,1631.9,1631.5,13.78599]
[1744648920513,6.12822,1631.8,1631.5,13.78599]
[1744648920838,6.12865,1631.7,1631.3,6.12987]
[1744648921030,6.12865,1631.7,1631.4,6.12955]
[1744648921339,7.3527258,1631.9,1631.5,4.0]
[1744648921521,6.12883,1631.7,1631.5,4.0]
[1744648921726,6.12876,1631.7,1631.5,4.0]
[1744648922042,6.12902,1631.6,1631.3,6.12993]
[1744648922248,6.12876,1631.7,1631.4,6.12964]
[1744648922455,6.86348258,1631.8,1631.4,6.12956]
[1744648922644,6.12869,1631.7,1631.3,6.12994]
[1744648922843,0.68639626,1631.7,1631.2,0.786]
[1744648923042,6.12965,1631.5,1631.1,13.78779]
[1744648923240,6.14,1631.4,1631.2,6.13042]
[1744648923440,6.14,1631.4,1631.1,13.78766]
[1744648923650,6.14,1631.4,1631.1,13.78774]
[1744648923855,6.14,1631.4,1631.2,6.13033]
[1744648924419,6.14,1631.4,1631.1,19.91847]
[1744648924627,6.14,1631.5,1631.1,9.648847]
[1744648924926,6.14,1631.7,1631.5,12.25832]
[1744648925125,12.26835,1631.8,1631.5,6.12915]
[1744648925329,6.12895,1631.6,1631.3,6.8935]
[1744648925525,6.9521,1631.5,1631.2,6.13043]
[1744648925724,6.9521,1631.5,1631.2,6.13032]
[1744648925955,6.9521,1631.5,1631.1,6.13074]
[1744648926149,12.26062,1631.3,1630.9,19.91998]
[1744648926462,12.26978,1631.4,1631.0,10.13104]
[1744648926627,6.14,1631.4,1631.0,4.0]
[1744648926827,6.14,1631.4,1631.3,6.13008]
[1744648931363,6.14,1631.4,1631.3,10.13008]
[1744648931663,6.14,1631.4,1631.3,12.41547455]
[1744648931829,0.7891,1631.7,1631.6,6.12895]
[1744648931830,6.14,1631.7,1631.6,6.12895]
[1744648932033,6.5410058,1631.9,1631.8,6.1282]
[1744648932230,6.5410058,1631.9,1631.3,23.05347455]
[1744648932231,6.12862,1631.7,1631.3,13.92339455]
[1744648932460,6.12862,1631.7,1631.0,6.13097]
[1744648932461,13.01258,1631.5,1631.4,4.0]
[1744648932769,14.927838,1631.5,1631.4,4.0]
[1744648932962,0.7535,1631.5,1631.4,4.0]
[1744648933161,6.14,1631.6,1631.3,12.25988]
[1744648933381,6.14,1631.6,1631.3,6.12993]
[1744648933664,6.14,1631.6,1631.5,6.12932]
[1744648934742,6.14,1631.6,1631.3,6.96257]
[1744648934936,12.26907,1631.6,1631.4,4.0]
[1744648935171,6.14,1631.6,1631.4,4.0]
[1744648935373,6.14,1631.6,1631.4,10.12964]
[1744648935570,6.14,1631.6,1631.4,4.0]
[1744648935946,6.90562,1631.5,1631.4,4.0]
[1744648936268,6.12996,1631.4,1631.0,12.26226]
[1744648936461,6.14,1631.4,1631.2,6.13035]
[1744648937044,6.14,1631.4,1631.2,6.13027]
[1744648937263,6.14,1631.4,1631.3,6.13008]
[1744648937759,12.2699,1631.4,1631.1,4.0]
[1744648937967,6.92625,1631.2,1631.1,4.0]
[1744648938165,6.9358,1631.2,1631.1,10.13083]
[1744648938367,6.14,1631.2,1631.1,4.0]
[1744648938695,6.14,1631.2,1631.1,5.013108]
[1744648938869,6.14,1631.2,1631.1,4.0]
[1744648939070,6.14,1631.2,1631.0,6.13108]
[1744648939396,6.14,1631.2,1631.1,6.13083]
[1744648939797,6.14,1631.4,1631.2,6.1303]
[1744648940002,6.14,1631.5,1631.4,6.1297]
[1744648942311,6.14,1631.5,1631.2,13.76845]
[1744648942599,6.754,1631.5,1631.3,4.0]
[1744648942802,6.754,1631.5,1631.3,10.13001]
[1744648943172,6.14,1631.5,1631.4,6.1297]
[1744648943591,6.9181,1631.7,1631.5,6.12913]
[1744648943781,6.9181,1631.7,1631.5,12.25826]
[1744648944265,6.9181,1631.7,1631.6,6.12895]
[1744648945178,6.14,1631.7,1631.6,6.12895]
[1744648946967,6.14,1631.8,1631.7,6.12857]
[1744648947789,6.14,1631.8,1631.6,13.76676]
[1744648947988,6.9722,1631.8,1631.6,7.638]
[1744648948189,6.9722,1631.8,1631.6,13.76683]
[1744648948502,6.9722,1631.8,1631.7,6.12857]
[1744648948702,6.14,1631.8,1631.7,8.11811]
[1744648948902,0.4010058,1631.9,1631.8,6.1282]
[1744648951174,0.4010058,1631.9,1631.8,6.18947654]
[1744648951482,0.4010058,1631.9,1631.8,6.1282]
[1744648952079,0.4010058,1631.9,1631.8,10.1282]
[1744648952516,0.4010058,1631.9,1631.7,12.25683]
[1744648952813,0.4010058,1631.9,1631.8,6.1282]
[1744648953324,0.4010058,1631.9,1631.7,6.12843]
[1744648953485,6.5290358,1631.9,1631.6,19.89569]
[1744648953815,0.4010058,1631.9,1631.7,6.12845]
[1744648954011,6.5288758,1631.9,1631.6,13.76683]
[1744648954217,12.26826,1631.8,1631.6,7.638]
[1744648954388,12.26826,1631.8,1631.5,19.89544]
[1744648954596,6.92588,1631.7,1631.2,0.8092]
[1744648954788,6.12905,1631.6,1631.3,13.76697]
[1744648955093,6.92588,1631.7,1631.2,7.633573]
[1744648955094,0.7973,1631.7,1631.2,6.13042]
[1744648955294,12.25826,1631.6,1631.2,13.76742]
[1744648955491,12.2694,1631.5,1631.2,13.76743]
[1744648955877,6.9239,1631.4,1631.0,6.13109]
[1744648956214,6.95808,1630.9,1630.8,7.81155664]
[1744648956419,13.09808,1630.9,1630.8,7.81155664]
[1744648956789,6.14,1630.9,1630.8,11.81155664]
[1744648957179,6.14,1630.9,1630.8,7.81155664]
[1744648957912,12.27158,1630.9,1630.8,7.81155664]
[1744648958433,6.13198,1630.8,1630.5,6.13292]
[1744648958587,6.13198,1630.8,1630.6,4.0]
[1744648958794,13.05062,1630.8,1630.4,12.26669]
[1744648959097,13.05062,1630.8,1630.3,67.65754]
[1744648959098,6.13243,1630.7,1630.3,67.65754]
[1744648959300,6.91853,1630.8,1630.4,6.1334]
[1744648959518,6.91853,1630.8,1630.5,6.13293]
[1744648959739,0.7865,1630.8,1630.3,61.5349596]
[1744648960013,0.7865,1630.8,1630.6,6.13257]
[1744648960187,0.7865,1630.8,1630.7,6.13233]
[1744648960386,6.14,1630.9,1630.7,12.26466]
[1744648960588,6.14,1630.9,1630.8,6.13195]
[1744648960782,6.9053,1631.0,1630.8,6.13195]
[1744648961194,6.9053,1631.0,1630.8,6.13182]
[1744648961794,13.03653,1631.0,1630.6,6.13258]
[1744648962017,6.13258,1630.7,1630.2,0.7803]
[1744648962217,6.9676,1630.6,1630.4,4.0]
[1744648962606,6.9676,1630.6,1630.4,12.26668]
[1744648962919,6.14,1630.6,1630.4,6.13333]
[1744648963313,6.13309,1630.5,1630.2,6.13405]
[1744648963528,6.13309,1630.5,1630.3,4.0]
[1744648963728,6.14,1630.6,1630.2,7.621]
[1744648964030,6.14,1630.6,1630.4,6.1333]
[1744648964226,6.14,1630.6,1630.3,6.13378]
[1744648964395,12.27271,1630.6,1630.3,6.13378]
[1744648964602,6.14,1630.6,1630.3,6.13373]
[1744648964809,6.14,1630.6,1630.4,6.13329]
[1744648965035,12.27277,1630.6,1630.3,12.26744]
[1744648965202,12.27277,1630.6,1630.3,6.13372]
[1744648965402,6.14,1630.6,1630.3,6.13372]
[1744648965593,6.14,1630.6,1630.3,13.642892]
[1744648965800,6.14,1630.6,1630.4,6.13331]
[1744648965999,6.14,1630.6,1630.2,19.889]
[1744648966212,6.14,1630.6,1630.2,13.75491]
[1744648966430,6.9543,1630.5,1630.2,6.13391]
[1744648966633,0.8211,1630.5,1630.0,6.13483]
[1744648966818,6.13361,1630.4,1630.1,17.75651]
[1744648967133,6.13421,1630.2,1630.1,4.0]
[1744648967308,13.09531,1630.2,1630.1,4.0]
[1744648967806,6.9611,1630.2,1629.8,4.0]
[1744648968016,6.14,1630.2,1630.1,6.13459]
[1744648968220,6.14,1630.6,1630.4,6.13331]
[1744648968620,6.1316,1630.9,1630.5,6.13282]
[1744648968807,0.7689,1630.9,1630.3,12.53011513]
[1744648969023,0.7689,1631.1,1630.4,0.0613231]
[1744648969228,0.7689,1631.1,1630.4,6.13337]
[1744648969229,6.1312,1631.0,1630.4,6.13337]
[1744648969537,12.26435,1630.8,1630.4,6.13332]
[1744648969833,12.26435,1630.8,1630.4,12.26667]
[1744648970213,12.26439,1630.8,1630.4,12.26667]
[1744648970600,6.13252,1630.7,1630.4,6.13332]
[1744648970799,6.13275,1630.6,1630.3,6.13371]
[1744648970996,6.13275,1630.6,1630.2,13.75706]
[1744648971312,1.41572,1630.9,1630.4,6.1333]
[1744648971513,12.26496,1630.7,1630.4,6.1333]
[1744648971713,12.26496,1630.7,1630.3,6.13371]
[1744648971714,6.13246,1630.7,1630.3,6.13371]
[1744648972033,6.13205,1630.8,1630.4,6.13315]
[1744648972432,12.2642,1630.8,1630.4,12.26632]
[1744648972596,12.2642,1630.8,1630.4,12.26646]
[1744648972803,12.2642,1630.8,1630.4,6.13315]
[1744648973019,6.13235,1630.7,1630.3,6.13379]
[1744648973236,0.8071,1630.7,1630.2,7.623]
[1744648973438,0.8071,1630.7,1629.9,7.623]
[1744648973439,6.1344,1630.2,1629.9,7.623]
[1744648973639,6.94105,1630.3,1630.0,10.13496]
[1744648973946,6.94105,1630.3,1630.0,12.2698]
[1744648974106,0.8071,1630.3,1630.1,6.1345]
[1744648974522,0.7872,1630.5,1630.2,6.13421]
[1744648974701,6.14,1630.4,1630.3,6.13373]
[1744648974906,6.14,1630.6,1630.3,7.360487]
[1744648975133,6.14,1630.6,1630.3,6.13371]
[1744648975646,6.14,1630.6,1630.3,12.2674]
[1744648976001,6.14,1630.6,1630.4,6.13345]
[1744648976198,6.14,1630.6,1630.1,6.95808]
[1744648976426,6.14,1630.6,1630.4,6.13324]
[1744648976630,6.14,1630.6,1630.4,12.26658]
[1744648976840,6.14,1630.6,1630.4,6.13324]